fUSD/lending_fUSD_20250608
["ID","MTS","AMOUNT","RATE_DAILY","PERIOD"]
[364956318,1749350996662,-480.0,0.00019671,2]
[364956319,1749350996684,-480.0,0.00019671,2]
[364956320,1749350996705,-1070.56,0.00019671,2]
[364956321,1749350996727,-480.0,0.00019671,2]
[364956322,1749350996751,-480.0,0.00019671,2]
[364956323,1749350996773,-480.0,0.00019671,2]
[364956324,1749350996796,-480.0,0.00019671,2]
[364956325,1749350996818,-496.57,0.00019671,2]
[364956326,1749350996840,-480.0,0.00019671,2]
[364956327,1749350996861,-480.0,0.00019671,2]
[364956328,1749350996884,-480.0,0.00019671,2]
[364956329,1749350996907,-480.0,0.00019671,2]
[364956330,1749350996931,-480.0,0.00019671,2]
[364956331,1749350996953,-515.64839077,0.00019671,2]
[364956332,1749350996974,-480.0,0.00019671,2]
[364956333,1749350996999,-313.60156498,0.00019671,2]
[364956334,1749350997021,-379.48658106,0.00019671,2]
[364956335,1749350997041,-480.0,0.00019671,2]
[364956336,1749350997065,-480.0,0.00019671,2]
[364956337,1749350997086,-480.0,0.00019671,2]
[364956338,1749350997107,-480.0,0.00019671,2]
[364956339,1749350997128,-480.0,0.00019671,2]
[364956340,1749350997154,-544.68814631,0.00019671,2]
[364956341,1749350997176,-480.0,0.00019671,2]
[364956342,1749350997200,-480.0,0.00019671,2]
[364956343,1749350997223,-480.0,0.00019671,2]
[364956344,1749350997247,-480.0,0.00019671,2]
[364956345,1749350997270,-480.0,0.00019671,2]
[364956346,1749350997291,-480.0,0.00019671,2]
[364956347,1749350997314,-480.0,0.00019671,2]
[364956348,1749350997335,-480.0,0.00019671,2]
[364956349,1749350997357,-480.0,0.00019671,2]
[364956350,1749350997379,-480.0,0.00019671,2]
[364956351,1749350997402,-362.69206426,0.00019671,2]
[364956352,1749350997424,-480.0,0.00019671,2]
[364956353,1749350997447,-480.0,0.00019671,2]
[364956354,1749350997469,-480.0,0.00019671,2]
[364956355,1749350997493,-480.0,0.00019671,2]
[364956357,1749350997515,-480.0,0.00019671,2]
[364956358,1749350997539,-480.0,0.00019671,2]
[364956359,1749350997562,-480.0,0.00019671,2]
[364956361,1749350997584,-480.0,0.00019671,2]
[364956363,1749350997608,-480.0,0.00019671,2]
[364956365,1749350997631,-1349.14,0.00019671,2]
[364956366,1749350997653,-480.0,0.00019671,2]
[364956367,1749350997677,-480.0,0.00019671,2]
[364956368,1749350997698,-492.33390101,0.00019671,2]
[364956369,1749350997720,-480.0,0.00019671,2]
[364956370,1749350997743,-624.42,0.00019671,2]
[364956371,1749350997766,-506.4738813,0.00019671,2]
[364956372,1749350997788,-537.05475804,0.00019671,2]
[364956373,1749350997814,-480.0,0.00019671,2]
[364956374,1749350997838,-480.0,0.00019671,2]
[364956375,1749350997863,-480.0,0.00019671,2]
[364956376,1749350997885,-489.00306809,0.00019671,2]
[364956377,1749350997907,-225.24129511,0.00019671,2]
[364956378,1749350997929,-552.449615,0.00019671,2]
[364956379,1749350997950,-480.0,0.00019671,2]
[364956380,1749350997972,-480.0,0.00019671,2]
[364956381,1749350997995,-480.0,0.00019671,2]
[364956382,1749350998017,-480.0,0.00019671,2]
[364956383,1749350998039,-480.0,0.00019671,2]
[364956384,1749350998061,-480.0,0.00019671,2]
[364956385,1749350998083,-504.30064826,0.00019671,2]
[364956386,1749350998106,-480.0,0.00019671,2]
[364956387,1749350998130,-283.8896279,0.00019671,2]
[364956388,1749350998156,-183.51274378,0.00019671,2]
[364956389,1749350998179,-480.0,0.00019671,2]
[364956390,1749350998201,-480.0,0.00019671,2]
[364956391,1749350998224,-480.0,0.00019671,2]
[364956392,1749350998246,-480.0,0.00019671,2]
[364956393,1749350998267,-480.0,0.00019671,2]
[364956394,1749350998287,-480.0,0.00019671,2]
[364956395,1749350998307,-480.0,0.00019671,2]
[364956396,1749350998329,-480.0,0.00019671,2]
[364956397,1749350998349,-300.0,0.00019671,2]
[364956398,1749350998370,-480.0,0.00019671,2]
[364956399,1749350998392,-155.25970152,0.00019671,2]
[364956400,1749350998414,-229.72513036,0.00019671,2]
[364956401,1749350998437,-480.0,0.00019671,2]
[364956402,1749350998460,-480.0,0.00019671,2]
[364956403,1749350998481,-480.0,0.00019671,2]
[364956404,1749350998504,-480.0,0.00019671,2]
[364956405,1749350998527,-480.0,0.00019671,2]
[364956406,1749350998550,-480.0,0.00019671,2]
[364956407,1749350998571,-480.0,0.00019671,2]
[364956408,1749350998595,-480.0,0.00019671,2]
[364956409,1749350998618,-480.0,0.00019671,2]
[364956410,1749350998639,-480.0,0.00019671,2]
[364956411,1749350998661,-480.0,0.00019671,2]
[364956412,1749350998683,-480.0,0.00019671,2]
[364956413,1749350998705,-480.0,0.00019671,2]
[364956414,1749350998728,-480.0,0.00019671,2]
[364956415,1749350998750,-480.0,0.00019671,2]
[364956416,1749350998771,-480.0,0.00019671,2]
[364956417,1749350998792,-480.0,0.00019671,2]
[364956418,1749350998813,-480.0,0.00019671,2]
[364956419,1749350998834,-499.71444697,0.00019671,2]
[364956420,1749350998855,-480.0,0.00019671,2]
[364956421,1749350998877,-588.16956855,0.00019671,2]
[364956422,1749350998900,-480.0,0.00019671,2]
[364956423,1749350998921,-502.91560755,0.00019671,2]
[364956424,1749350998945,-480.0,0.00019671,2]
[364956425,1749350998966,-480.0,0.00019671,2]
[364956426,1749350998986,-480.0,0.00019671,2]
[364956427,1749350999007,-480.0,0.00019671,2]
[364956428,1749350999028,-500.10684958,0.00019671,2]
[364956429,1749350999049,-480.0,0.00019671,2]
[364956430,1749350999071,-480.0,0.00019671,2]
[364956431,1749350999092,-480.0,0.00019671,2]
[364956432,1749350999113,-480.0,0.00019671,2]
[364956433,1749350999134,-480.0,0.00019671,2]
[364956434,1749350999158,-480.0,0.00019671,2]
[364956435,1749350999179,-480.0,0.00019671,2]
[364956436,1749350999202,-480.0,0.00019671,2]
[364956437,1749350999223,-480.0,0.00019671,2]
[364956438,1749350999246,-480.0,0.00019671,2]
[364956439,1749350999268,-492.32529141,0.00019671,2]
[364956440,1749350999291,-480.0,0.00019671,2]
[364956441,1749350999316,-480.0,0.00019671,2]
[364956442,1749350999339,-508.18918091,0.00019671,2]
[364956443,1749350999361,-480.0,0.00019671,2]
[364956444,1749350999384,-480.0,0.00019671,2]
[364956445,1749350999580,-480.0,0.00019671,2]
[364956446,1749350999604,-480.0,0.00019671,2]
[364956447,1749350999626,-480.0,0.00019671,2]
[364956448,1749350999649,-480.0,0.00019671,2]
[364956449,1749350999672,-480.0,0.00019671,2]
[364956450,1749350999694,-480.0,0.00019671,2]
[364956451,1749350999717,-480.0,0.00019671,2]
[364956452,1749350999741,-480.0,0.00019671,2]
[364956453,1749350999763,-480.0,0.00019671,2]
[364956454,1749350999786,-480.0,0.00019671,2]
[364956455,1749350999809,-480.0,0.00019671,2]
[364956456,1749350999832,-480.0,0.00019671,2]
[364956457,1749350999854,-406.85352044,0.00019671,2]
[364956458,1749350999876,-480.0,0.00019671,2]
[364956459,1749350999898,-480.0,0.00019671,2]
[364956460,1749350999920,-480.0,0.00019671,2]
[364956461,1749350999944,-1090.2552956,0.00019671,2]
[364956462,1749351026431,-500.0,0.00018715,2]
[364956463,1749351026458,-1200.0,0.00019177,2]
[364956464,1749351026482,-480.0,0.00019178,2]
[364956465,1749351026506,-480.0,0.00019178,2]
[364956466,1749351026534,-480.0,0.00019178,2]
[364956467,1749351026559,-480.0,0.00019178,2]
[364956468,1749351026587,-480.0,0.00019178,2]
[364956469,1749351026615,-480.0,0.00019178,2]
[364956470,1749351026639,-540.56,0.00019178,2]
[364956471,1749351026662,-480.0,0.00019178,2]
[364956472,1749351026685,-480.0,0.00019178,2]
[364956473,1749351026707,-480.0,0.00019178,2]
[364956474,1749351026730,-480.0,0.00019178,2]
[364956475,1749351026757,-480.0,0.00019178,2]
[364956476,1749351026779,-693.58,0.00019178,2]
[364956477,1749351026804,-480.0,0.00019178,2]
[364956479,1749351026825,-238.60756185,0.00019178,2]
[364956480,1749351026849,-500.34,0.00019178,2]
[364956481,1749351026873,-2796.59,0.00019178,2]
[364956482,1749351026895,-480.0,0.00019178,2]
[364956483,1749351026917,-480.0,0.00019178,2]
[364956484,1749351026938,-480.0,0.00019178,2]
[364956485,1749351026959,-480.0,0.00019178,2]
[364956486,1749351026981,-480.0,0.00019178,2]
[364956487,1749351027003,-480.0,0.00019178,2]
[364956488,1749351027027,-480.0,0.00019178,2]
[364956489,1749351027049,-480.0,0.00019178,2]
[364956490,1749351027073,-480.0,0.00019178,2]
[364956491,1749351027095,-480.0,0.00019178,2]
[364956492,1749351027117,-480.0,0.00019178,2]
[364956493,1749351027139,-480.0,0.00019178,2]
[364956494,1749351027161,-480.0,0.00019178,2]
[364956495,1749351027186,-480.0,0.00019178,2]
[364956496,1749351027209,-480.0,0.00019178,2]
[364956497,1749351027233,-480.0,0.00019178,2]
[364956498,1749351027255,-534.9,0.00019178,2]
[364956499,1749351027277,-480.0,0.00019178,2]
[364956500,1749351027300,-480.0,0.00019178,2]
[364956501,1749351027320,-868.71,0.00019178,2]
[364956502,1749351027340,-480.0,0.00019178,2]
[364956503,1749351027361,-480.0,0.00019178,2]
[364956504,1749351027381,-480.0,0.00019178,2]
[364956505,1749351027402,-480.0,0.00019178,2]
[364956506,1749351027423,-480.0,0.00019178,2]
[364956507,1749351027445,-480.0,0.00019178,2]
[364956508,1749351027466,-480.0,0.00019342,2]
[364956509,1749351027489,-480.0,0.00019342,2]
[364956510,1749351027512,-480.0,0.00019342,2]
[364956511,1749351027536,-480.0,0.00019342,2]
[364956512,1749351027557,-480.0,0.00019342,2]
[364956513,1749351027579,-480.0,0.00019342,2]
[364956514,1749351027599,-480.0,0.00019342,2]
[364956515,1749351027622,-693.58,0.00019342,2]
[364956516,1749351027647,-480.0,0.00019342,2]
[364956517,1749351027670,-480.0,0.00019342,2]
[364956518,1749351027691,-500.34,0.00019342,2]
[364956519,1749351027716,-2796.59,0.00019342,2]
[364956520,1749351027737,-480.0,0.00019342,2]
[364956521,1749351027759,-656.298075,0.00019342,2]
[364956522,1749351027783,-480.0,0.00019342,2]
[364956523,1749351027809,-480.0,0.00019342,2]
[364956524,1749351027830,-480.0,0.00019342,2]
[364956525,1749351027852,-480.0,0.00019342,2]
[364956526,1749351027875,-480.0,0.00019342,2]
[364956527,1749351027896,-480.0,0.00019342,2]
[364956528,1749351027918,-480.0,0.00019342,2]
[364956529,1749351027940,-480.0,0.00019342,2]
[364956530,1749351027961,-480.0,0.00019342,2]
[364956531,1749351027995,-480.0,0.00019342,2]
[364956532,1749351028025,-532.0468193,0.00019342,2]
[364956533,1749351028058,-480.0,0.00019342,2]
[364956534,1749351028091,-534.9,0.00019342,2]
[364956535,1749351028121,-480.0,0.00019342,2]
[364956536,1749351028152,-480.0,0.00019342,2]
[364956537,1749351028184,-868.71,0.00019342,2]
[364956538,1749351028219,-546.18297253,0.00019342,2]
[364956539,1749351028248,-480.0,0.00019342,2]
[364956540,1749351028282,-480.0,0.00019342,2]
[364956541,1749351028311,-480.0,0.00019342,2]
[364956542,1749351028345,-480.0,0.00019342,2]
[364956543,1749351028376,-480.0,0.00019342,2]
[364956544,1749351028405,-480.0,0.00019506,2]
[364956545,1749351028440,-480.0,0.00019506,2]
[364956546,1749351028467,-480.0,0.00019506,2]
[364956547,1749351028500,-480.0,0.00019506,2]
[364956548,1749351028528,-480.0,0.00019506,2]
[364956549,1749351028556,-480.0,0.00019506,2]
[364956550,1749351028591,-480.0,0.00019506,2]
[364956551,1749351028620,-693.58,0.00019506,2]
[364956552,1749351028650,-480.0,0.00019506,2]
[364956553,1749351028680,-480.0,0.00019506,2]
[364956554,1749351028710,-500.34,0.00019506,2]
[364956555,1749351028742,-2796.59,0.00019506,2]
[364956556,1749351028770,-295.66,0.00019506,2]
[364956557,1749351028800,-656.298075,0.00019506,2]
[364956558,1749351028829,-480.0,0.00019506,2]
[364956559,1749351028858,-480.0,0.00019506,2]
[364956560,1749351028890,-480.0,0.00019506,2]
[364956561,1749351028920,-480.0,0.00019506,2]
[364956562,1749351028949,-480.0,0.00019506,2]
[364956563,1749351028979,-480.0,0.00019506,2]
[364956564,1749351029010,-480.0,0.00019506,2]
[364956565,1749351029038,-480.0,0.00019506,2]
[364956566,1749351029067,-480.0,0.00019506,2]
[364956567,1749351029096,-480.0,0.00019506,2]
[364956568,1749351029123,-534.9,0.00019506,2]
[364956569,1749351029151,-480.0,0.00019506,2]
[364956570,1749351029179,-383.52708454,0.00019506,2]
[364956571,1749351029213,-868.71,0.00019506,2]
[364956572,1749351029244,-480.0,0.00019506,2]
[364956573,1749351029273,-480.0,0.00019506,2]
[364956574,1749351029307,-480.0,0.00019506,2]
[364956575,1749351029338,-480.0,0.00019506,2]
[364956576,1749351029372,-500.0,0.00019573,2]
[364956577,1749351029401,-77.7547044,0.00019671,2]
[364956578,1749351029430,-480.0,0.00019671,2]
[364956579,1749351029460,-482.48844641,0.00019671,2]
[364956580,1749351029492,-480.0,0.00019671,2]
[364956581,1749351029516,-480.0,0.00019671,2]
[364956582,1749351029538,-480.0,0.00019671,2]
[364956583,1749351029559,-480.0,0.00019671,2]
[364956584,1749351029581,-480.0,0.00019671,2]
[364956585,1749351029603,-590.01647037,0.00019671,2]
[364956586,1749351029628,-480.0,0.00019671,2]
[364956587,1749351029651,-480.0,0.00019671,2]
[364956588,1749351029673,-480.0,0.00019671,2]
[364956589,1749351029696,-1075.14,0.00019671,2]
[364956590,1749351029719,-480.0,0.00019671,2]
[364956591,1749351029743,-480.0,0.00019671,2]
[364956592,1749351029767,-480.0,0.00019671,2]
[364956593,1749351029789,-480.0,0.00019671,2]
[364956594,1749351029812,-480.0,0.00019671,2]
[364956595,1749351029832,-849.84,0.00019671,2]
[364956596,1749351029854,-480.0,0.00019671,2]
[364956597,1749351029878,-480.0,0.00019671,2]
[364956598,1749351029903,-310.6925672,0.00019671,2]
[364956599,1749351029925,-519.39,0.00019671,2]
[364956600,1749351029947,-480.0,0.00019671,2]
[364956601,1749351030336,-809.6,0.00019671,2]
[364956602,1749351030358,-485.17460001,0.00019671,2]
[364956603,1749351030382,-3083.56,0.00019671,2]
[364956604,1749351030405,-485.66510302,0.00019671,2]
[364956605,1749351030429,-6758.72,0.00019671,2]
[364956606,1749351030453,-705.97,0.00019671,2]
[364956607,1749351030475,-571.10548073,0.00019671,2]
[364956608,1749351030498,-480.0,0.00019671,2]
[364956609,1749351030520,-480.0,0.00019671,2]
[364956610,1749351030542,-480.0,0.00019671,2]
[364956611,1749351030567,-480.0,0.00019671,2]
[364956612,1749351030590,-480.0,0.00019671,2]
[364956613,1749351030613,-434.87196015,0.00019671,2]
[364956614,1749351030636,-480.0,0.00019671,2]
[364956615,1749351030663,-747.62,0.00019671,2]
[364956616,1749351030685,-480.0,0.00019671,2]
[364956617,1749351030709,-480.0,0.00019671,2]
[364956618,1749351030730,-480.0,0.00019671,2]
[364956619,1749351030752,-7559.853785,0.00019671,2]
[364956620,1749351030774,-480.0,0.00019671,2]
[364956621,1749351030798,-480.0,0.00019671,2]
[364956622,1749351030821,-480.0,0.00019671,2]
[364956623,1749351030844,-480.0,0.00019671,2]
[364956624,1749351030865,-730.1,0.00019671,2]
[364956625,1749351030887,-480.0,0.00019671,2]
[364956626,1749351030911,-1186.32,0.00019671,2]
[364956627,1749351030934,-162.473877,0.00019671,2]
[364956628,1749351030957,-344.999122,0.00019671,2]
[364956629,1749351030979,-344.999122,0.00019671,2]
[364956630,1749351031001,-344.999122,0.00019671,2]
[364956631,1749351031023,-1395.92,0.00019671,2]
[364956632,1749351031045,-690.3,0.00019671,2]
[364956633,1749351031066,-344.999122,0.00019671,2]
[364956634,1749351031087,-344.999122,0.00019671,2]
[364956635,1749351031109,-344.999122,0.00019671,2]
[364956636,1749351031130,-485.68157307,0.00019671,2]
[364956637,1749351031153,-480.0,0.00019671,2]
[364956638,1749351031174,-480.0,0.00019671,2]
[364956639,1749351031219,-480.0,0.00019671,2]
[364956640,1749351031243,-480.0,0.00019671,2]
[364956641,1749351031268,-480.0,0.00019671,2]
[364956642,1749351031292,-480.0,0.00019671,2]
[364956643,1749351031316,-480.0,0.00019671,2]
[364956644,1749351031340,-1521.71,0.00019671,2]
[364956645,1749351031366,-2435.99,0.00019671,2]
[364956646,1749351031391,-480.0,0.00019671,2]
[364956647,1749351031417,-480.0,0.00019671,2]
[364956648,1749351031443,-7506.504717,0.00019671,2]
[364956649,1749351031468,-480.0,0.00019671,2]
[364956650,1749351031494,-839.1,0.00019671,2]
[364956651,1749351031520,-301.39666037,0.00019671,2]
[364956652,1749351031544,-480.0,0.00019671,2]
[364956653,1749351031569,-480.0,0.00019671,2]
[364956654,1749351031596,-667.96,0.00019671,2]
[364956655,1749351031621,-480.0,0.00019671,2]
[364956656,1749351031643,-1000.0,0.00019671,2]
[364956657,1749351031666,-281.370618,0.00019671,2]
[364956658,1749351031696,-480.0,0.00019671,2]
[364956659,1749351031723,-480.0,0.00019671,2]
[364956660,1749351031747,-304.50814756,0.00019671,2]
[364956661,1749351031769,-480.0,0.00019671,2]
[364956662,1749351031793,-480.0,0.00019671,2]
[364956663,1749351031816,-480.0,0.00019671,2]
[364956664,1749351031839,-480.0,0.00019671,2]
[364956665,1749351031864,-480.0,0.00019671,2]
[364956666,1749351031886,-480.0,0.00019671,2]
[364956667,1749351031910,-480.0,0.00019671,2]
[364956668,1749351031934,-480.0,0.00019671,2]
[364956669,1749351031959,-2966.12,0.00019671,2]
[364956670,1749351031983,-480.0,0.00019671,2]
[364956671,1749351032008,-480.0,0.00019671,2]
[364956672,1749351032032,-636.22,0.00019671,2]
[364956673,1749351032055,-480.0,0.00019671,2]
[364956674,1749351032078,-5096.33,0.00019671,2]
[364956675,1749351032103,-205.4391358,0.00019671,2]
[364956676,1749351032128,-480.0,0.00019671,2]
[364956677,1749351032152,-480.0,0.00019671,2]
[364956678,1749351032177,-480.0,0.00019671,2]
[364956680,1749351032207,-480.0,0.00019671,2]
[364956681,1749351032235,-480.0,0.00019671,2]
[364956682,1749351032260,-480.0,0.00019671,2]
[364956683,1749351032285,-480.0,0.00019671,2]
[364956684,1749351032309,-480.0,0.00019671,2]
[364956685,1749351032334,-480.0,0.00019671,2]
[364956686,1749351032361,-480.0,0.00019671,2]
[364956687,1749351032385,-480.0,0.00019671,2]
[364956688,1749351032411,-480.0,0.00019671,2]
[364956689,1749351032436,-974.73,0.00019671,2]
[364956690,1749351032459,-480.0,0.00019671,2]
[364956691,1749351032483,-480.0,0.00019671,2]
[364956692,1749351032506,-480.0,0.00019671,2]
[364956693,1749351032529,-480.0,0.00019671,2]
[364956694,1749351032550,-581.61,0.00019671,2]
[364956695,1749351032573,-788.09,0.00019671,2]
[364956696,1749351032595,-81796.72,0.00019671,2]
[364956697,1749351032619,-772.169187,0.00019671,2]
[364956698,1749351032642,-480.0,0.00019671,2]
[364956699,1749351032665,-480.0,0.00019671,2]
[364956700,1749351032688,-480.0,0.00019671,2]
[364956702,1749351032716,-480.0,0.00019671,2]
[364956704,1749351032741,-480.0,0.00019671,2]
[364956705,1749351032765,-762.16,0.00019671,2]
[364956706,1749351032790,-480.98,0.00019671,2]
[364956707,1749351032812,-480.0,0.00019671,2]
[364956708,1749351032834,-480.0,0.00019671,2]
[364956709,1749351032856,-480.0,0.00019671,2]
[364956710,1749351032878,-530.83,0.00019671,2]
[364956711,1749351032901,-480.0,0.00019671,2]
[364956712,1749351032923,-998.96,0.00019671,2]
[364956713,1749351032947,-2513.75,0.00019671,2]
[364956714,1749351032972,-633.33,0.00019671,2]
[364956716,1749351032995,-517.80775217,0.00019671,2]
[364956719,1749351033020,-480.0,0.00019671,2]
[364956720,1749351033043,-480.0,0.00019671,2]
[364956721,1749351033068,-480.0,0.00019671,2]
[364956723,1749351033092,-480.0,0.00019671,2]
[364956726,1749351033115,-480.0,0.00019671,2]
[364956727,1749351033139,-480.0,0.00019671,2]
[364956728,1749351033163,-764.25,0.00019671,2]
[364956729,1749351033187,-480.0,0.00019671,2]
[364956730,1749351033212,-480.0,0.00019671,2]
[364956731,1749351033246,-480.0,0.00019671,2]
[364956732,1749351033273,-480.0,0.00019671,2]
[364956733,1749351033301,-480.0,0.00019671,2]
[364956734,1749351033324,-480.0,0.00019671,2]
[364956735,1749351033349,-480.0,0.00019671,2]
[364956736,1749351033372,-480.0,0.00019671,2]
[364956737,1749351033398,-693.58,0.00019671,2]
[364956738,1749351033423,-480.0,0.00019671,2]
[364956739,1749351033448,-480.0,0.00019671,2]
[364956740,1749351033479,-500.34,0.00019671,2]
[364956742,1749351033507,-2796.59,0.00019671,2]
[364956743,1749351033533,-656.298075,0.00019671,2]
[364956744,1749351033558,-480.0,0.00019671,2]
[364956745,1749351033582,-480.0,0.00019671,2]
[364956746,1749351033608,-480.0,0.00019671,2]
[364956747,1749351033632,-480.0,0.00019671,2]
[364956748,1749351033656,-480.0,0.00019671,2]
[364956749,1749351033682,-480.0,0.00019671,2]
[364956750,1749351033707,-480.0,0.00019671,2]
[364956751,1749351033731,-480.0,0.00019671,2]
[364956752,1749351033756,-480.0,0.00019671,2]
[364956753,1749351033786,-534.9,0.00019671,2]
[364956754,1749351033811,-480.0,0.00019671,2]
[364956755,1749351034066,-868.71,0.00019671,2]
[364956756,1749351034094,-480.0,0.00019671,2]
[364956757,1749351034117,-480.0,0.00019671,2]
[364956758,1749351034141,-480.0,0.00019671,2]
[364956759,1749351034163,-500.0,0.00019673,2]
[364956760,1749351034184,-502.68513546,0.00019673,2]
[364956761,1749351034210,-5561.3474863,0.0001968,2]
[364956762,1749351034235,-163.89432345,0.00019681,2]
[364956763,1749351034259,-151.37467174,0.00019681,2]
[364956764,1749351034282,-600.0,0.000197,7]
[364956765,1749351034306,-454.65,0.000197,2]
[364956766,1749351034328,-454.65,0.000197,2]
[364956767,1749351034350,-454.65,0.000197,2]
[364956768,1749351034372,-150.0,0.00019733,2]
[364956769,1749351034394,-5561.3474863,0.00019735,2]
[364956770,1749351034418,-150.0,0.00019737,2]
[364956771,1749351034441,-150.0,0.00019744,2]
[364956772,1749351034464,-151.37467174,0.00019754,2]
[364956773,1749351034488,-150.0,0.00019765,2]
[364956774,1749351034511,-174.97167064,0.00019765,2]
[364956775,1749351034535,-150.0,0.00019768,2]
[364956776,1749351034558,-150.0,0.00019768,2]
[364956777,1749351034582,-150.0,0.00019777,2]
[364956778,1749351034603,-5561.3474863,0.0001979,2]
[364956779,1749351034626,-150.0,0.00019799,2]
[364956780,1749351034648,-600.0,0.000198,7]
[364956781,1749351034672,-150.0,0.00019808,2]
[364956782,1749351034697,-150.0,0.0001982,2]
[364956783,1749351034719,-151.37467174,0.00019827,2]
[364956784,1749351034743,-150.0,0.00019828,2]
[364956785,1749351034766,-500.0,0.00019834,2]
[364956786,1749351034787,-1573.76,0.00019834,2]
[364956787,1749351034810,-500.0,0.00019834,2]
[364956788,1749351034831,-500.0,0.00019834,2]
[364956789,1749351034853,-480.0,0.00019835,2]
[364956790,1749351034874,-480.0,0.00019835,2]
[364956791,1749351034896,-480.0,0.00019835,2]
[364956792,1749351034918,-480.0,0.00019835,2]
[364956793,1749351034941,-480.0,0.00019835,2]
[364956794,1749351034963,-567.66304059,0.00019835,2]
[364956795,1749351034985,-504.08836972,0.00019835,2]
[364956796,1749351035006,-480.0,0.00019835,2]
[364956797,1749351035028,-480.0,0.00019835,2]
[364956798,1749351035051,-499.28342562,0.00019835,2]
[364956799,1749351035072,-480.0,0.00019835,2]
[364956800,1749351035095,-480.0,0.00019835,2]
[364956801,1749351035116,-624.03,0.00019835,2]
[364956802,1749351035139,-480.0,0.00019835,2]
[364956803,1749351035161,-480.0,0.00019835,2]
[364956804,1749351035183,-426.51063071,0.00019835,2]
[364956805,1749351035204,-402.27923993,0.00019835,2]
[364956806,1749351035229,-561.50036208,0.00019835,2]
[364956807,1749351035251,-480.0,0.00019835,2]
[364956808,1749351035272,-480.0,0.00019835,2]
[364956809,1749351035293,-480.0,0.00019835,2]
[364956810,1749351035314,-867.61,0.00019835,2]
[364956811,1749351035337,-480.0,0.00019835,2]
[364956812,1749351035358,-480.0,0.00019835,2]
[364956813,1749351035380,-600.29730903,0.00019835,2]
[364956814,1749351035402,-480.0,0.00019835,2]
[364956815,1749351035424,-310.18,0.00019835,2]
[364956816,1749351035446,-480.0,0.00019835,2]
[364956817,1749351035467,-507.06875402,0.00019835,2]
[364956818,1749351035488,-480.0,0.00019835,2]
[364956819,1749351035510,-159.09083215,0.00019835,2]
[364956820,1749351035532,-480.0,0.00019835,2]
[364956821,1749351035554,-480.0,0.00019835,2]
[364956822,1749351035575,-496.57,0.00019835,2]
[364956823,1749351035597,-496.94887442,0.00019835,2]
[364956824,1749351035619,-480.0,0.00019835,2]
[364956825,1749351035642,-480.0,0.00019835,2]
[364956826,1749351035664,-480.0,0.00019835,2]
[364956827,1749351035687,-480.0,0.00019835,2]
[364956828,1749351035709,-480.0,0.00019835,2]
[364956829,1749351035733,-480.0,0.00019835,2]
[364956830,1749351035755,-478.35064697,0.00019835,2]
[364956831,1749351035778,-480.0,0.00019835,2]
[364956832,1749351035801,-480.0,0.00019835,2]